[Event "Titled Tuesday Blitz August 22 Early 2023"]
[White "Rego, Pedro Filipe"]
[Black "Mendez Fortes, Eduardo Jesus"]
[WhiteFideId "1904310"]
[BlackFideId "3502376"]
[WhiteElo "2367"]
[BlackElo "2630"]
[Result "0-1"]
[Round "1"]
[TimeControl "180+1"]
[Date "2023.08.22"]
[WhiteClock "0:00:00"]
[BlackClock "0:00:13"]
[Board "145"]

1. e4 {[%clk 0:02:57]}  c5 {[%clk 0:02:59]} 2. Nf3 {[%clk 0:02:58]}  d6 {[%clk 0:02:59]} 3. d4 {[%clk 0:02:58]}  cxd4 {[%clk 0:03:00]} 4. Nxd4 {[%clk 0:02:58]}  Nf6 {[%clk 0:03:01]} 5. Nc3 {[%clk 0:02:59]}  a6 {[%clk 0:03:01]} 6. Bd3 {[%clk 0:02:52]}  e5 {[%clk 0:02:57]} 7. Nf5 {[%clk 0:02:51]}  g6 {[%clk 0:02:51]} 8. Ne3 {[%clk 0:02:39]}  Be6 {[%clk 0:02:49]} 9. O-O {[%clk 0:02:37]}  Bg7 {[%clk 0:02:48]} 10. a4 {[%clk 0:02:36]}  O-O {[%clk 0:02:47]} 11. Ncd5 {[%clk 0:02:34]}  Nxd5 {[%clk 0:02:45]} 12. exd5 {[%clk 0:02:31]}  Bc8 {[%clk 0:02:44]} 13. c4 {[%clk 0:02:31]}  a5 {[%clk 0:02:44]} 14. Nc2 {[%clk 0:02:27]}  f5 {[%clk 0:02:40]} 15. Na3 {[%clk 0:02:21]}  Na6 {[%clk 0:02:35]} 16. Nb5 {[%clk 0:02:16]}  b6 {[%clk 0:02:30]} 17. Be2 {[%clk 0:02:04]}  f4 {[%clk 0:02:16]} 18. f3 {[%clk 0:01:58]}  Nc5 {[%clk 0:02:14]} 19. Bd2 {[%clk 0:01:54]}  Bf5 {[%clk 0:02:08]} 20. Bc3 {[%clk 0:01:53]}  Qe7 {[%clk 0:01:47]} 21. Re1 {[%clk 0:01:39]}  Bf6 {[%clk 0:01:42]} 22. Ra3 {[%clk 0:01:30]}  Bh4 {[%clk 0:01:40]} 23. Rf1 {[%clk 0:01:30]}  Rae8 {[%clk 0:01:36]} 24. b4 {[%clk 0:01:27]}  axb4 {[%clk 0:01:35]} 25. Bxb4 {[%clk 0:01:28]}  e4 {[%clk 0:01:19]} 26. a5 {[%clk 0:01:10]}  bxa5 {[%clk 0:01:16]} 27. Bxc5 {[%clk 0:01:09]}  dxc5 {[%clk 0:01:17]} 28. Rxa5 {[%clk 0:01:09]}  exf3 {[%clk 0:01:15]} 29. Bxf3 {[%clk 0:01:09]}  Qe3+ {[%clk 0:01:15]} 30. Kh1 {[%clk 0:01:09]}  Bd3 {[%clk 0:01:02]} 31. Ra3 {[%clk 0:00:59]}  Bxf1 {[%clk 0:01:02]} 32. Rxe3 {[%clk 0:00:56]}  Rxe3 {[%clk 0:00:58]} 33. Qxf1 {[%clk 0:00:35]}  Re1 {[%clk 0:00:53]} 34. Qxe1 {[%clk 0:00:33]}  Bxe1 {[%clk 0:00:54]} 35. Nc7 {[%clk 0:00:30]}  Rb8 {[%clk 0:00:46]} 36. d6 {[%clk 0:00:17]}  Rb1 {[%clk 0:00:38]} 37. g4 {[%clk 0:00:16]}  fxg3 {[%clk 0:00:35]} 38. Kg2 {[%clk 0:00:13]}  gxh2 {[%clk 0:00:35]} 39. Kxh2 {[%clk 0:00:13]}  Bc3 {[%clk 0:00:30]} 40. Bd5+ {[%clk 0:00:09]}  Kh8 {[%clk 0:00:30]} 41. Ne8 {[%clk 0:00:05]}  Be5+ {[%clk 0:00:26]} 42. Kh3 {[%clk 0:00:05]}  Rb8 {[%clk 0:00:24]} 43. d7 {[%clk 0:00:05]}  Rd8 {[%clk 0:00:23]} 44. Bc6 {[%clk 0:00:04]}  Kg8 {[%clk 0:00:23]} 45. Kg4 {[%clk 0:00:04]}  Kf7 {[%clk 0:00:23]} 46. Kf3 {[%clk 0:00:04]}  Ke7 {[%clk 0:00:19]} 47. Ke4 {[%clk 0:00:04]}  Bd4 {[%clk 0:00:20]} 48. Nc7 {[%clk 0:00:03]}  Rxd7 {[%clk 0:00:19]} 49. Nd5+ {[%clk 0:00:02]}  Kd6 {[%clk 0:00:17]} 50. Bxd7 {[%clk 0:00:02]}  Kxd7 {[%clk 0:00:18]} 51. Nf4 {[%clk 0:00:02]}  Ke7 {[%clk 0:00:18]} 52. Nd5+ {[%clk 0:00:02]}  Kf7 {[%clk 0:00:18]} 53. Nc7 {[%clk 0:00:02]}  h5 {[%clk 0:00:18]} 54. Nb5 {[%clk 0:00:02]}  g5 {[%clk 0:00:17]} 55. Kf5 {[%clk 0:00:02]}  g4 {[%clk 0:00:17]} 56. Nd6+ {[%clk 0:00:03]}  Ke7 {[%clk 0:00:17]} 57. Ne4 {[%clk 0:00:04]}  Be3 {[%clk 0:00:16]} 58. Ng3 {[%clk 0:00:04]}  h4 {[%clk 0:00:16]} 59. Nf1 {[%clk 0:00:04]}  h3 {[%clk 0:00:14]} 60. Kxg4 {[%clk 0:00:04]}  Ke6 {[%clk 0:00:12]} 61. Kxh3 {[%clk 0:00:03]}  Bf4 {[%clk 0:00:12]} 62. Kg4 {[%clk 0:00:03]}  Ke5 {[%clk 0:00:13]} 63. Kf3 {[%clk 0:00:04]}  Kf5 {[%clk 0:00:12]} 64. Ke2 {[%clk 0:00:04]}  Ke4 {[%clk 0:00:12]} 65. Kd1 {[%clk 0:00:04]}  Kd3 {[%clk 0:00:12]} 66. Ke1 {[%clk 0:00:03]}  Kxc4 {[%clk 0:00:12]} 67. Kd1 {[%clk 0:00:00]}  Kb3 {[%clk 0:00:13]} 0-1


[Site "https://www.chess.com"]

[Event "Titled Tuesday Blitz August 22 Early 2023"]
[White "Gutkin, Ilya"]
[Black "Nefedov, Sergey"]
[WhiteFideId "16203470"]
[BlackFideId "24113417"]
[WhiteElo "2359"]
[BlackElo "2629"]
[Result "1-0"]
[Round "1"]
[TimeControl "180+1"]
[Date "2023.08.22"]
[WhiteClock "0:00:39"]
[BlackClock "0:01:36"]
[Board "147"]

1. e4 {[%clk 0:03:00]}  d5 {[%clk 0:02:59]} 2. exd5 {[%clk 0:03:00]}  Qxd5 {[%clk 0:02:59]} 3. Nc3 {[%clk 0:03:01]}  Qd8 {[%clk 0:02:57]} 4. d4 {[%clk 0:02:59]}  Nf6 {[%clk 0:02:56]} 5. Nf3 {[%clk 0:02:57]}  c6 {[%clk 0:02:55]} 6. h3 {[%clk 0:02:57]}  Bf5 {[%clk 0:02:53]} 7. Bd3 {[%clk 0:02:57]}  Bg6 {[%clk 0:02:52]} 8. O-O {[%clk 0:02:56]}  e6 {[%clk 0:02:52]} 9. Re1 {[%clk 0:02:54]}  Be7 {[%clk 0:02:52]} 10. Bf4 {[%clk 0:02:54]}  O-O {[%clk 0:02:52]} 11. Bxg6 {[%clk 0:02:51]}  hxg6 {[%clk 0:02:53]} 12. Qd3 {[%clk 0:02:48]}  Nd5 {[%clk 0:02:52]} 13. Nxd5 {[%clk 0:02:48]}  cxd5 {[%clk 0:02:53]} 14. Bxb8 {[%clk 0:02:47]}  Rxb8 {[%clk 0:02:52]} 15. Qb3 {[%clk 0:02:44]}  b5 {[%clk 0:02:51]} 16. c3 {[%clk 0:02:43]}  Qc7 {[%clk 0:02:49]} 17. Reb1 {[%clk 0:02:37]}  Rfc8 {[%clk 0:02:38]} 18. Ne5 {[%clk 0:02:29]}  Bd6 {[%clk 0:02:36]} 19. Nd3 {[%clk 0:02:29]}  a5 {[%clk 0:02:33]} 20. a4 {[%clk 0:02:27]}  b4 {[%clk 0:02:33]} 21. cxb4 {[%clk 0:02:11]}  Bxb4 {[%clk 0:02:32]} 22. Rc1 {[%clk 0:02:10]}  Qd7 {[%clk 0:02:09]} 23. Rxc8+ {[%clk 0:01:42]}  Qxc8 {[%clk 0:02:06]} 24. Rc1 {[%clk 0:01:42]}  Qa6 {[%clk 0:02:03]} 25. Nc5 {[%clk 0:00:42]}  Qa7 {[%clk 0:01:50]} 26. Qg3 {[%clk 0:00:39]}  Bxc5 {[%clk 0:01:47]} 27. Rxc5 {[%clk 0:00:39]}  Rxb2 {[%clk 0:01:42]} 28. Rc8+ {[%clk 0:00:38]}  Kh7 {[%clk 0:01:36]} 29. Qh4# {[%clk 0:00:39]} 1-0


[Site "https://www.chess.com"]

[Event "Titled Tuesday Blitz August 22 Early 2023"]
[White "Ozalp, Burak"]
[Black "SmirnovAlexandrA"]
[WhiteFideId "6314210"]
[WhiteElo "2355"]
[BlackElo "2623"]
[Result "0-1"]
[Round "1"]
[TimeControl "180+1"]
[Date "2023.08.22"]
[WhiteClock "0:00:14"]
[BlackClock "0:00:34"]
[Board "149"]

1. e4 {[%clk 0:03:00]}  d5 {[%clk 0:02:52]} 2. exd5 {[%clk 0:02:56]}  Qxd5 {[%clk 0:02:53]} 3. Nc3 {[%clk 0:02:57]}  Qd6 {[%clk 0:02:53]} 4. d4 {[%clk 0:02:56]}  Nf6 {[%clk 0:02:52]} 5. Nf3 {[%clk 0:02:54]}  a6 {[%clk 0:02:53]} 6. g3 {[%clk 0:02:53]}  Bg4 {[%clk 0:02:52]} 7. h3 {[%clk 0:02:53]}  Bh5 {[%clk 0:02:50]} 8. Bg2 {[%clk 0:02:48]}  Nc6 {[%clk 0:02:47]} 9. d5 {[%clk 0:02:44]}  Ne5 {[%clk 0:02:29]} 10. Bf4 {[%clk 0:02:32]}  Bxf3 {[%clk 0:02:16]} 11. Bxf3 {[%clk 0:02:24]}  Nxf3+ {[%clk 0:02:16]} 12. Qxf3 {[%clk 0:02:23]}  e5 {[%clk 0:02:17]} 13. Bg5 {[%clk 0:01:47]}  Be7 {[%clk 0:02:08]} 14. O-O {[%clk 0:01:28]}  O-O-O {[%clk 0:02:03]} 15. Rad1 {[%clk 0:01:19]}  Kb8 {[%clk 0:01:52]} 16. Rfe1 {[%clk 0:01:19]}  h6 {[%clk 0:01:49]} 17. Bxf6 {[%clk 0:01:18]}  Qxf6 {[%clk 0:01:50]} 18. Qxf6 {[%clk 0:01:16]}  Bxf6 {[%clk 0:01:47]} 19. Ne4 {[%clk 0:01:16]}  Be7 {[%clk 0:01:45]} 20. g4 {[%clk 0:01:13]}  h5 {[%clk 0:01:43]} 21. g5 {[%clk 0:01:07]}  f6 {[%clk 0:01:43]} 22. h4 {[%clk 0:01:04]}  Rhf8 {[%clk 0:01:41]} 23. Kg2 {[%clk 0:01:03]}  b5 {[%clk 0:01:29]} 24. a3 {[%clk 0:01:01]}  Rd7 {[%clk 0:01:26]} 25. Rd3 {[%clk 0:00:54]}  f5 {[%clk 0:01:23]} 26. Ng3 {[%clk 0:00:48]}  e4 {[%clk 0:01:23]} 27. Rdd1 {[%clk 0:00:42]}  g6 {[%clk 0:01:23]} 28. f4 {[%clk 0:00:41]}  Rfd8 {[%clk 0:01:19]} 29. Ne2 {[%clk 0:00:24]}  Rxd5 {[%clk 0:01:19]} 30. Nc3 {[%clk 0:00:25]}  Rd2+ {[%clk 0:01:06]} 31. Rxd2 {[%clk 0:00:22]}  Rxd2+ {[%clk 0:01:07]} 32. Re2 {[%clk 0:00:23]}  Rxe2+ {[%clk 0:01:02]} 33. Nxe2 {[%clk 0:00:23]}  c5 {[%clk 0:01:03]} 34. Nc3 {[%clk 0:00:22]}  Kc7 {[%clk 0:00:50]} 35. Nd5+ {[%clk 0:00:21]}  Kd6 {[%clk 0:00:51]} 36. Nxe7 {[%clk 0:00:20]}  Kxe7 {[%clk 0:00:52]} 37. Kf2 {[%clk 0:00:19]}  Kd6 {[%clk 0:00:52]} 38. Ke3 {[%clk 0:00:20]}  Kd5 {[%clk 0:00:52]} 39. b3 {[%clk 0:00:19]}  b4 {[%clk 0:00:37]} 40. a4 {[%clk 0:00:14]}  c4 {[%clk 0:00:35]} 41. Ke2 {[%clk 0:00:14]}  cxb3 {[%clk 0:00:34]} 42. cxb3 {[%clk 0:00:14]}  Kd4 {[%clk 0:00:34]} 43. Kd2 {[%clk 0:00:14]}  a5 {[%clk 0:00:34]} 44. Ke2 {[%clk 0:00:14]}  Kc3 {[%clk 0:00:34]} 0-1


[Site "https://www.chess.com"]

[Event "Titled Tuesday Blitz August 22 Early 2023"]
[White "Tanwir, Furqan"]
[Black "Iskusnyh, Sergei"]
[WhiteFideId "2023962"]
[BlackFideId "4120027"]
[WhiteElo "2352"]
[BlackElo "2621"]
[Result "0-1"]
[Round "1"]
[TimeControl "180+1"]
[Date "2023.08.22"]
[WhiteClock "0:01:54"]
[BlackClock "0:01:06"]
[Board "151"]

1. e4 {[%clk 0:03:00]}  e6 {[%clk 0:02:59]} 2. d4 {[%clk 0:03:00]}  d5 {[%clk 0:02:59]} 3. Nc3 {[%clk 0:03:01]}  Nf6 {[%clk 0:02:59]} 4. e5 {[%clk 0:03:01]}  Nfd7 {[%clk 0:02:59]} 5. f4 {[%clk 0:03:01]}  c5 {[%clk 0:02:59]} 6. Nf3 {[%clk 0:03:02]}  Nc6 {[%clk 0:02:59]} 7. Be3 {[%clk 0:03:03]}  a6 {[%clk 0:02:59]} 8. Qd2 {[%clk 0:03:03]}  b5 {[%clk 0:02:56]} 9. dxc5 {[%clk 0:03:02]}  Bxc5 {[%clk 0:02:52]} 10. Nd4 {[%clk 0:03:02]}  Qb6 {[%clk 0:02:28]} 11. O-O-O {[%clk 0:03:00]}  Nxd4 {[%clk 0:02:20]} 12. Bxd4 {[%clk 0:03:01]}  Bxd4 {[%clk 0:02:19]} 13. Qxd4 {[%clk 0:03:02]}  Qxd4 {[%clk 0:02:19]} 14. Rxd4 {[%clk 0:03:03]}  Nc5 {[%clk 0:02:17]} 15. Bd3 {[%clk 0:03:03]}  Bd7 {[%clk 0:02:04]} 16. h4 {[%clk 0:03:02]}  Ke7 {[%clk 0:02:01]} 17. Rh3 {[%clk 0:03:00]}  h5 {[%clk 0:01:57]} 18. Rg3 {[%clk 0:03:00]}  g6 {[%clk 0:01:57]} 19. Kd2 {[%clk 0:02:56]}  Rhc8 {[%clk 0:01:56]} 20. Ne2 {[%clk 0:02:47]}  a5 {[%clk 0:01:52]} 21. Rf3 {[%clk 0:02:42]}  b4 {[%clk 0:01:44]} 22. g4 {[%clk 0:02:41]}  hxg4 {[%clk 0:01:42]} 23. Rg3 {[%clk 0:02:41]}  Rc7 {[%clk 0:01:26]} 24. Rxg4 {[%clk 0:02:40]}  Rac8 {[%clk 0:01:26]} 25. c3 {[%clk 0:02:29]}  Nxd3 {[%clk 0:01:18]} 26. Rxd3 {[%clk 0:02:25]}  Bb5 {[%clk 0:01:18]} 27. Re3 {[%clk 0:02:21]}  Bxe2 {[%clk 0:01:17]} 28. Kxe2 {[%clk 0:02:19]}  bxc3 {[%clk 0:01:17]} 29. bxc3 {[%clk 0:02:19]}  Rxc3 {[%clk 0:01:18]} 30. Rxc3 {[%clk 0:02:16]}  Rxc3 {[%clk 0:01:17]} 31. f5 {[%clk 0:02:11]}  exf5 {[%clk 0:01:13]} 32. Ra4 {[%clk 0:02:11]}  Rc5 {[%clk 0:01:12]} 33. Ke3 {[%clk 0:02:10]}  Ke6 {[%clk 0:01:11]} 34. Kd4 {[%clk 0:02:07]}  Rc4+ {[%clk 0:01:11]} 35. Rxc4 {[%clk 0:02:06]}  dxc4 {[%clk 0:01:12]} 36. a4 {[%clk 0:01:59]}  f4 {[%clk 0:01:12]} 37. Kxc4 {[%clk 0:01:56]}  Kxe5 {[%clk 0:01:08]} 38. h5 {[%clk 0:01:54]}  gxh5 {[%clk 0:01:06]} 0-1


[Site "https://www.chess.com"]

[Event "Titled Tuesday Blitz August 22 Early 2023"]
[White "Sharan, Rao"]
[Black "Senft, Sean"]
[WhiteFideId "5073464"]
[BlackFideId "2044960"]
[WhiteElo "2620"]
[BlackElo "2347"]
[Result "1-0"]
[Round "1"]
[TimeControl "180+1"]
[Date "2023.08.22"]
[WhiteClock "0:00:06"]
[BlackClock "0:00:07"]
[Board "152"]

1. d4 {[%clk 0:02:55]}  d5 {[%clk 0:02:59]} 2. Nf3 {[%clk 0:02:54]}  Nf6 {[%clk 0:02:59]} 3. Bf4 {[%clk 0:02:55]}  c6 {[%clk 0:02:59]} 4. e3 {[%clk 0:02:54]}  Bf5 {[%clk 0:02:56]} 5. c4 {[%clk 0:02:51]}  a6 {[%clk 0:02:56]} 6. Nc3 {[%clk 0:02:41]}  e6 {[%clk 0:02:55]} 7. Qb3 {[%clk 0:02:40]}  Ra7 {[%clk 0:02:55]} 8. Be2 {[%clk 0:02:32]}  Bd6 {[%clk 0:02:53]} 9. Bg3 {[%clk 0:02:21]}  O-O {[%clk 0:02:51]} 10. Ne5 {[%clk 0:02:20]}  Ne4 {[%clk 0:02:44]} 11. Nxe4 {[%clk 0:02:14]}  Bxe4 {[%clk 0:02:44]} 12. O-O {[%clk 0:01:49]}  f6 {[%clk 0:02:41]} 13. Nd3 {[%clk 0:01:45]}  Bxg3 {[%clk 0:02:39]} 14. hxg3 {[%clk 0:01:46]}  Bxd3 {[%clk 0:02:23]} 15. Bxd3 {[%clk 0:01:46]}  Nd7 {[%clk 0:02:24]} 16. Rad1 {[%clk 0:01:28]}  Kh8 {[%clk 0:02:20]} 17. e4 {[%clk 0:01:23]}  Nb6 {[%clk 0:01:41]} 18. c5 {[%clk 0:01:08]}  Nd7 {[%clk 0:01:40]} 19. Rfe1 {[%clk 0:01:02]}  Qc7 {[%clk 0:01:39]} 20. Qc2 {[%clk 0:00:55]}  h6 {[%clk 0:01:20]} 21. Qe2 {[%clk 0:00:54]}  b6 {[%clk 0:00:59]} 22. Qg4 {[%clk 0:00:43]}  bxc5 {[%clk 0:00:35]} 23. exd5 {[%clk 0:00:41]}  f5 {[%clk 0:00:29]} 24. Qg6 {[%clk 0:00:35]}  cxd5 {[%clk 0:00:24]} 25. Rxe6 {[%clk 0:00:33]}  Nf6 {[%clk 0:00:10]} 26. Bxf5 {[%clk 0:00:30]}  Kg8 {[%clk 0:00:09]} 27. Rde1 {[%clk 0:00:26]}  Qf7 {[%clk 0:00:08]} 28. Qxf7+ {[%clk 0:00:12]}  Raxf7 {[%clk 0:00:09]} 29. dxc5 {[%clk 0:00:11]}  Rc7 {[%clk 0:00:09]} 30. b4 {[%clk 0:00:08]}  a5 {[%clk 0:00:09]} 31. a3 {[%clk 0:00:09]}  axb4 {[%clk 0:00:10]} 32. axb4 {[%clk 0:00:10]}  Rb8 {[%clk 0:00:11]} 33. Bg6 {[%clk 0:00:07]}  Rcc8 {[%clk 0:00:03]} 34. Rb6 {[%clk 0:00:04]}  Rxb6 {[%clk 0:00:03]} 35. cxb6 {[%clk 0:00:05]}  Rb8 {[%clk 0:00:04]} 36. Re6 {[%clk 0:00:05]}  Kf8 {[%clk 0:00:04]} 37. f3 {[%clk 0:00:04]}  d4 {[%clk 0:00:03]} 38. Kf2 {[%clk 0:00:04]}  Ng8 {[%clk 0:00:03]} 39. Ke2 {[%clk 0:00:04]}  Ne7 {[%clk 0:00:04]} 40. Be4 {[%clk 0:00:04]}  Kf7 {[%clk 0:00:04]} 41. Rd6 {[%clk 0:00:04]}  Nc8 {[%clk 0:00:05]} 42. Rd7+ {[%clk 0:00:03]}  Ke6 {[%clk 0:00:05]} 43. Rxd4 {[%clk 0:00:03]}  Rxb6 {[%clk 0:00:06]} 44. Kd3 {[%clk 0:00:03]}  Nd6 {[%clk 0:00:06]} 45. g4 {[%clk 0:00:03]}  Nb5 {[%clk 0:00:06]} 46. Rc4 {[%clk 0:00:03]}  Rd6+ {[%clk 0:00:06]} 47. Kc2 {[%clk 0:00:03]}  Nd4+ {[%clk 0:00:06]} 48. Kb2 {[%clk 0:00:02]}  Nb5 {[%clk 0:00:06]} 49. Rc6 {[%clk 0:00:02]}  Rxc6 {[%clk 0:00:04]} 50. Bxc6 {[%clk 0:00:03]}  Nd4 {[%clk 0:00:05]} 51. Be4 {[%clk 0:00:03]}  Ke5 {[%clk 0:00:05]} 52. Kc3 {[%clk 0:00:04]}  Ne6 {[%clk 0:00:05]} 53. Kc4 {[%clk 0:00:04]}  Kf4 {[%clk 0:00:05]} 54. b5 {[%clk 0:00:04]}  Kg3 {[%clk 0:00:04]} 55. b6 {[%clk 0:00:05]}  Nd8 {[%clk 0:00:05]} 56. b7 {[%clk 0:00:05]}  Nxb7 {[%clk 0:00:05]} 57. Bxb7 {[%clk 0:00:06]}  Kxg2 {[%clk 0:00:06]} 58. Kd4 {[%clk 0:00:06]}  Kg3 {[%clk 0:00:06]} 59. Ke5 {[%clk 0:00:05]}  g6 {[%clk 0:00:06]} 60. Ke4 {[%clk 0:00:03]}  h5 {[%clk 0:00:06]} 61. gxh5 {[%clk 0:00:03]}  gxh5 {[%clk 0:00:07]} 62. f4 {[%clk 0:00:04]}  h4 {[%clk 0:00:07]} 63. Ke5 {[%clk 0:00:05]}  Kg4 {[%clk 0:00:06]} 64. f5 {[%clk 0:00:05]}  Kg5 {[%clk 0:00:07]} 65. f6 {[%clk 0:00:06]}  h3 {[%clk 0:00:08]} 66. Ke6 {[%clk 0:00:06]}  h2 {[%clk 0:00:09]} 67. f7 {[%clk 0:00:07]}  h1=Q {[%clk 0:00:07]} 68. Bxh1 {[%clk 0:00:06]} 1-0


[Site "https://www.chess.com"]

[Event "Titled Tuesday Blitz August 22 Early 2023"]
[White "Ziatdinov, Raset"]
[Black "Gimenez Aguirre, Alejo Ismael"]
[WhiteFideId "2015323"]
[BlackFideId "32041667"]
[WhiteElo "2346"]
[BlackElo "2620"]
[Result "0-1"]
[Round "1"]
[TimeControl "180+1"]
[Date "2023.08.22"]
[WhiteClock "0:00:07"]
[BlackClock "0:01:11"]
[Board "153"]

1. e4 {[%clk 0:03:00]}  c5 {[%clk 0:02:59]} 2. Nf3 {[%clk 0:03:00]}  g6 {[%clk 0:02:55]} 3. d4 {[%clk 0:03:00]}  cxd4 {[%clk 0:02:55]} 4. Nxd4 {[%clk 0:03:01]}  Bg7 {[%clk 0:02:54]} 5. Nc3 {[%clk 0:03:02]}  Nc6 {[%clk 0:02:54]} 6. Be3 {[%clk 0:03:01]}  Nf6 {[%clk 0:02:53]} 7. Bc4 {[%clk 0:02:55]}  O-O {[%clk 0:02:52]} 8. Bb3 {[%clk 0:02:56]}  d6 {[%clk 0:02:51]} 9. f3 {[%clk 0:02:52]}  Nxd4 {[%clk 0:02:50]} 10. Bxd4 {[%clk 0:02:52]}  Bd7 {[%clk 0:02:51]} 11. Qd2 {[%clk 0:02:52]}  b5 {[%clk 0:02:50]} 12. O-O-O {[%clk 0:02:51]}  a5 {[%clk 0:02:49]} 13. Nd5 {[%clk 0:02:45]}  Nxd5 {[%clk 0:02:49]} 14. Bxd5 {[%clk 0:02:40]}  Rc8 {[%clk 0:02:48]} 15. Bxg7 {[%clk 0:02:38]}  Kxg7 {[%clk 0:02:48]} 16. h4 {[%clk 0:02:38]}  h5 {[%clk 0:02:46]} 17. g4 {[%clk 0:02:36]}  Rh8 {[%clk 0:02:40]} 18. Qd4+ {[%clk 0:02:18]}  f6 {[%clk 0:02:39]} 19. Rdg1 {[%clk 0:02:09]}  hxg4 {[%clk 0:02:25]} 20. fxg4 {[%clk 0:02:07]}  Qc7 {[%clk 0:02:26]} 21. c3 {[%clk 0:01:50]}  Qc5 {[%clk 0:02:25]} 22. Qxc5 {[%clk 0:01:41]}  Rxc5 {[%clk 0:02:26]} 23. g5 {[%clk 0:01:32]}  f5 {[%clk 0:02:21]} 24. Re1 {[%clk 0:01:20]}  e5 {[%clk 0:02:14]} 25. Kb1 {[%clk 0:01:13]}  f4 {[%clk 0:02:11]} 26. Rh2 {[%clk 0:00:57]}  Bg4 {[%clk 0:02:10]} 27. Rg1 {[%clk 0:00:46]}  Bf3 {[%clk 0:02:08]} 28. Rf1 {[%clk 0:00:42]}  Bh5 {[%clk 0:02:00]} 29. Kc2 {[%clk 0:00:39]}  b4 {[%clk 0:01:58]} 30. c4 {[%clk 0:00:37]}  a4 {[%clk 0:01:58]} 31. Kd3 {[%clk 0:00:31]}  Rb8 {[%clk 0:01:49]} 32. Rff2 {[%clk 0:00:29]}  b3 {[%clk 0:01:39]} 33. a3 {[%clk 0:00:29]}  Kf8 {[%clk 0:01:35]} 34. Rh1 {[%clk 0:00:28]}  Ke7 {[%clk 0:01:36]} 35. Rc1 {[%clk 0:00:28]}  Rh8 {[%clk 0:01:36]} 36. Rh2 {[%clk 0:00:25]}  Bg4 {[%clk 0:01:36]} 37. Re1 {[%clk 0:00:20]}  Rh7 {[%clk 0:01:33]} 38. Rc1 {[%clk 0:00:20]}  Rc8 {[%clk 0:01:33]} 39. Rg1 {[%clk 0:00:14]}  Be6 {[%clk 0:01:33]} 40. Rgh1 {[%clk 0:00:13]}  Kd7 {[%clk 0:01:20]} 41. Bxe6+ {[%clk 0:00:11]}  Kxe6 {[%clk 0:01:20]} 42. Rd1 {[%clk 0:00:11]}  Rch8 {[%clk 0:01:20]} 43. Rdh1 {[%clk 0:00:11]}  Kd7 {[%clk 0:01:20]} 44. Kc3 {[%clk 0:00:11]}  Kc6 {[%clk 0:01:21]} 45. Kb4 {[%clk 0:00:11]}  Ra8 {[%clk 0:01:21]} 46. h5 {[%clk 0:00:11]}  gxh5 {[%clk 0:01:17]} 47. Rxh5 {[%clk 0:00:12]}  Rb7+ {[%clk 0:01:17]} 48. Kc3 {[%clk 0:00:12]}  Rg7 {[%clk 0:01:18]} 49. Rg1 {[%clk 0:00:12]}  Rf8 {[%clk 0:01:18]} 50. g6 {[%clk 0:00:12]}  f3 {[%clk 0:01:18]} 51. Rf5 {[%clk 0:00:11]}  Rfg8 {[%clk 0:01:16]} 52. Rxf3 {[%clk 0:00:10]}  Rxg6 {[%clk 0:01:17]} 53. Rxg6 {[%clk 0:00:11]}  Rxg6 {[%clk 0:01:18]} 54. Rf8 {[%clk 0:00:12]}  Rg2 {[%clk 0:01:18]} 55. Ra8 {[%clk 0:00:11]}  Rc2+ {[%clk 0:01:17]} 56. Kb4 {[%clk 0:00:11]}  Rxb2 {[%clk 0:01:18]} 57. Rxa4 {[%clk 0:00:10]}  Rb1 {[%clk 0:01:18]} 58. Kc3 {[%clk 0:00:10]}  b2 {[%clk 0:01:11]} 59. Rb4 {[%clk 0:00:10]}  Rc1+ {[%clk 0:01:11]} 60. Kxb2 {[%clk 0:00:10]}  Re1 {[%clk 0:01:12]} 61. Kb3 {[%clk 0:00:08]}  Rxe4 {[%clk 0:01:12]} 62. a4 {[%clk 0:00:04]}  Re3+ {[%clk 0:01:12]} 63. Kb2 {[%clk 0:00:04]}  Re2+ {[%clk 0:01:13]} 64. Kb3 {[%clk 0:00:04]}  e4 {[%clk 0:01:14]} 65. Rb8 {[%clk 0:00:04]}  Re1 {[%clk 0:01:14]} 66. Re8 {[%clk 0:00:04]}  Kc5 {[%clk 0:01:14]} 67. Kc3 {[%clk 0:00:04]}  Rc1+ {[%clk 0:01:13]} 68. Kd2 {[%clk 0:00:04]}  Rxc4 {[%clk 0:01:13]} 69. a5 {[%clk 0:00:05]}  d5 {[%clk 0:01:13]} 70. a6 {[%clk 0:00:05]}  Ra4 {[%clk 0:01:13]} 71. Rc8+ {[%clk 0:00:05]}  Kd4 {[%clk 0:01:13]} 72. Rc6 {[%clk 0:00:04]}  Ra2+ {[%clk 0:01:13]} 73. Rc2 {[%clk 0:00:04]}  Rxa6 {[%clk 0:01:13]} 74. Rb2 {[%clk 0:00:04]}  Rh6 {[%clk 0:01:13]} 75. Kd1 {[%clk 0:00:03]}  Rh3 {[%clk 0:01:12]} 76. Rd2+ {[%clk 0:00:03]}  Ke5 {[%clk 0:01:12]} 77. Rg2 {[%clk 0:00:03]}  d4 {[%clk 0:01:12]} 78. Rg5+ {[%clk 0:00:04]}  Kf4 {[%clk 0:01:13]} 79. Rg8 {[%clk 0:00:05]}  Ke3 {[%clk 0:01:13]} 80. Rf8 {[%clk 0:00:06]}  Rh1+ {[%clk 0:01:11]} 81. Rf1 {[%clk 0:00:07]} 0-1


[Site "https://www.chess.com"]

[Event "Titled Tuesday Blitz August 22 Early 2023"]
[White "Sadzikowski, Daniel"]
[Black "Lopez Del Alamo, Antonio"]
[WhiteFideId "1132253"]
[BlackFideId "2227339"]
[WhiteElo "2615"]
[BlackElo "2338"]
[Result "1/2-1/2"]
[Round "1"]
[TimeControl "180+1"]
[Date "2023.08.22"]
[WhiteClock "0:00:44"]
[BlackClock "0:00:43"]
[Board "158"]

1. e4 {[%clk 0:02:56]}  c5 {[%clk 0:02:59]} 2. Nf3 {[%clk 0:02:56]}  e6 {[%clk 0:03:00]} 3. d4 {[%clk 0:02:56]}  cxd4 {[%clk 0:03:00]} 4. Nxd4 {[%clk 0:02:57]}  Nf6 {[%clk 0:03:00]} 5. Nc3 {[%clk 0:02:58]}  Nc6 {[%clk 0:03:00]} 6. Nxc6 {[%clk 0:02:55]}  bxc6 {[%clk 0:03:01]} 7. e5 {[%clk 0:02:56]}  Nd5 {[%clk 0:03:01]} 8. Ne4 {[%clk 0:02:57]}  Bb7 {[%clk 0:03:01]} 9. Be2 {[%clk 0:02:55]}  c5 {[%clk 0:03:01]} 10. O-O {[%clk 0:02:47]}  Qc7 {[%clk 0:03:01]} 11. Nd6+ {[%clk 0:02:43]}  Bxd6 {[%clk 0:03:02]} 12. exd6 {[%clk 0:02:44]}  Qc6 {[%clk 0:03:02]} 13. Bf3 {[%clk 0:02:30]}  c4 {[%clk 0:03:00]} 14. Qd4 {[%clk 0:02:29]}  O-O {[%clk 0:02:58]} 15. b3 {[%clk 0:02:13]}  Rfc8 {[%clk 0:02:56]} 16. Be3 {[%clk 0:02:11]}  cxb3 {[%clk 0:02:24]} 17. cxb3 {[%clk 0:02:11]}  Qxd6 {[%clk 0:02:15]} 18. Rfc1 {[%clk 0:02:09]}  a5 {[%clk 0:02:10]} 19. Bd2 {[%clk 0:02:05]}  f6 {[%clk 0:01:35]} 20. Rxc8+ {[%clk 0:01:53]}  Bxc8 {[%clk 0:01:33]} 21. Bxd5 {[%clk 0:01:49]}  Qxd5 {[%clk 0:01:34]} 22. Qxd5 {[%clk 0:01:49]}  exd5 {[%clk 0:01:34]} 23. Bc3 {[%clk 0:01:46]}  Bb7 {[%clk 0:01:27]} 24. a4 {[%clk 0:01:30]}  d4 {[%clk 0:01:20]} 25. Bxd4 {[%clk 0:01:30]}  Bd5 {[%clk 0:01:21]} 26. Rb1 {[%clk 0:01:07]}  Rb8 {[%clk 0:01:13]} 27. Bc3 {[%clk 0:01:06]}  Rxb3 {[%clk 0:01:12]} 28. Rxb3 {[%clk 0:01:06]}  Bxb3 {[%clk 0:01:12]} 29. Bxa5 {[%clk 0:01:07]}  Bxa4 {[%clk 0:01:12]} 30. h4 {[%clk 0:01:03]}  Kf7 {[%clk 0:01:11]} 31. f3 {[%clk 0:01:02]}  Ke6 {[%clk 0:01:07]} 32. Kf2 {[%clk 0:01:02]}  g6 {[%clk 0:01:07]} 33. Ke3 {[%clk 0:01:02]}  h5 {[%clk 0:01:04]} 34. Bd8 {[%clk 0:00:53]}  Kf5 {[%clk 0:01:03]} 35. g3 {[%clk 0:00:50]}  Bc6 {[%clk 0:01:01]} 36. Be7 {[%clk 0:00:47]}  g5 {[%clk 0:01:00]} 37. hxg5 {[%clk 0:00:46]}  fxg5 {[%clk 0:01:01]} 38. Bd8 {[%clk 0:00:43]}  d5 {[%clk 0:00:45]} 39. Be7 {[%clk 0:00:43]}  d4+ {[%clk 0:00:44]} 40. Kxd4 {[%clk 0:00:43]}  Bxf3 {[%clk 0:00:44]} 41. Ke3 {[%clk 0:00:44]}  Kg4 {[%clk 0:00:43]} 42. Kf2 {[%clk 0:00:44]}  h4 {[%clk 0:00:42]} 43. gxh4 {[%clk 0:00:44]}  gxh4 {[%clk 0:00:43]} 44. Bxh4 {[%clk 0:00:44]} 1/2-1/2


[Site "https://www.chess.com"]